fUST/lending_fUST_20250315
["ID","MTS","AMOUNT","RATE_DAILY","PERIOD"]
[356179495,1742026241430,-755.74,8.219e-05,2]
[356179496,1742026241440,-509.34504912,8.219e-05,2]
[356179497,1742026241451,-679.64,8.219e-05,2]
[356179498,1742026241461,-2616.15,8.219e-05,2]
[356179499,1742026241471,-500.0,8.219e-05,2]
[356179500,1742026241482,-500.0,8.219e-05,2]
[356179501,1742026241492,-1201.07,8.219e-05,2]
[356179502,1742026241503,-1569.53,8.219e-05,2]
[356179503,1742026241513,-510.05893948,8.219e-05,2]
[356179504,1742026241524,-518.25016255,8.219e-05,2]
[356179505,1742026241534,-516.01880535,8.219e-05,2]
[356179506,1742026241544,-500.0,8.219e-05,2]
[356179507,1742026241554,-500.0,8.219e-05,2]
[356179508,1742026241565,-500.0,8.219e-05,2]
[356179509,1742026241575,-500.0,8.219e-05,2]
[356179510,1742026241585,-5288.54,8.219e-05,2]
[356179511,1742026241595,-500.0,8.219e-05,2]
[356179512,1742026241604,-500.72558953,8.219e-05,2]
[356179513,1742026241615,-500.0,8.219e-05,2]
[356179514,1742026241625,-3817.28,8.219e-05,2]
[356179515,1742026241636,-500.0,8.219e-05,2]
[356179516,1742026241646,-356.27944059,8.219e-05,2]
[356179517,1742026241657,-4628.55,8.219e-05,2]
[356179518,1742026241667,-500.0,8.219e-05,2]
[356179519,1742026241676,-500.0,8.219e-05,2]
[356179520,1742026241687,-640.46,8.219e-05,2]
[356179521,1742026241697,-10259.94294987,8.219e-05,2]
[356179522,1742026241911,-1318.93705013,8.219e-05,2]
[356179523,1742026241922,-500.0,8.219e-05,2]
[356179524,1742026241931,-989.05,8.219e-05,2]
[356179525,1742026241941,-500.0,8.219e-05,2]
[356179526,1742026241951,-2690.76784987,8.219e-05,2]
[356179583,1742026299626,371.7,8e-05,2]
[356179584,1742026377686,-300.0,9e-05,4]
[356179585,1742026392223,-300.0,9e-05,4]
[356179586,1742026393695,-300.0,9e-05,4]
[356179587,1742026927245,18579.9434249,7.397e-05,2]
[356179588,1742026962514,5000.0,8e-05,2]
[356179589,1742026976897,5007.74,8e-05,2]
[356179594,1742027212128,-242.18547723,8.017e-05,2]
[356179595,1742027246219,-160.0,9.886e-05,7]
[356179596,1742027246241,-140.0,0.0001,7]
[356179597,1742027248052,-300.0,0.0001,7]
[356179598,1742027249439,-226.50018246,0.0001,7]
[356179599,1742027311999,-160.0,0.00010236,10]
[356179618,1742027328962,-160.0,0.00010353,11]
[356179622,1742027348008,-160.0,0.0001047,12]
[356179624,1742027368094,-160.0,0.0001012,9]
[356179625,1742027382519,-160.0,0.00010003,8]
[356179626,1742027425020,698.21687338,8e-05,2]
[356179769,1742027440782,-500.0,8.017e-05,2]
[356179770,1742027440791,-2.88821302,8.017e-05,2]
[356179778,1742027443333,-371.7,8.017e-05,2]
[356179781,1742027446447,-125.41178698,8.017e-05,2]
[356179782,1742027446457,-500.0,8.017e-05,2]
[356179783,1742027446467,-212.38821302,8.017e-05,2]
[356179784,1742027617453,222000.0,7.919e-05,2]
[356179785,1742027695059,342.48,8e-05,2]
[356179786,1742027703840,342.48,8e-05,2]
[356179787,1742027712569,1391.99136295,8e-05,2]
[356179788,1742027734577,222000.0,7.919e-05,2]
[356179789,1742027788644,158.35575,8e-05,2]
[356179790,1742027806607,180.3770235,7.259e-05,2]
[356179791,1742027945044,156.48739094,8e-05,2]
[356179792,1742027972389,24900.0,7.397e-05,2]
[356179793,1742028053160,241.304898,7.16e-05,2]
[356179794,1742028198005,202.922946,7.16e-05,2]
[356179795,1742028301489,40008.7421746,7.16e-05,2]
[356179969,1742028643644,-500.0,8.116e-05,2]
[356179970,1742028643654,-500.0,8.116e-05,2]
[356179971,1742028643664,-449.23165032,8.116e-05,2]
[356179972,1742028643674,-50.76834968,8.116e-05,2]
[356179973,1742028643698,-449.23165032,8.116e-05,2]
[356179974,1742028643708,-500.0,8.116e-05,2]
[356179975,1742028643718,-500.0,8.116e-05,2]
[356179976,1742028643727,-500.0,8.116e-05,2]
[356179977,1742028643737,-500.0,8.116e-05,2]
[356179978,1742028643746,-24.23442292,8.116e-05,2]
[356180001,1742028646649,-475.76557708,8.116e-05,2]
[356180002,1742028646659,-500.0,8.116e-05,2]
[356180003,1742028646668,-500.0,8.116e-05,2]
[356180004,1742028646678,-500.0,8.116e-05,2]
[356180005,1742028646687,-500.0,8.116e-05,2]
[356180006,1742028646696,-500.0,8.116e-05,2]
[356180007,1742028646706,-500.0,8.116e-05,2]
[356180008,1742028646715,-500.0,8.116e-05,2]
[356180009,1742028646724,-500.0,8.116e-05,2]
[356180010,1742028646734,-500.0,8.116e-05,2]
[356180011,1742028646743,-500.0,8.116e-05,2]
[356180012,1742028646752,-500.0,8.116e-05,2]
[356180013,1742028646762,-500.0,8.116e-05,2]
[356180014,1742028646771,-500.0,8.116e-05,2]
[356180015,1742028646783,-500.0,8.116e-05,2]
[356180016,1742028646792,-500.0,8.116e-05,2]
[356180017,1742028646802,-224.12966865,8.116e-05,2]
[356180018,1742028646811,-500.0,8.116e-05,2]
[356180019,1742028646820,-500.0,8.116e-05,2]
[356180020,1742028646830,-500.0,8.116e-05,2]
[356180021,1742028646840,-500.0,8.116e-05,2]
[356180022,1742028646850,-500.0,8.116e-05,2]
[356180023,1742028646859,-500.0,8.116e-05,2]
[356180024,1742028646869,-300.0,8.116e-05,2]
[356180025,1742028646880,-20000.0,8.117e-05,2]
[356180026,1742028646889,-229.13417608,8.118e-05,2]
[356180027,1742028646899,-500.0,8.118e-05,2]
[356180028,1742028646908,-500.0,8.118e-05,2]
[356180029,1742028646917,-512.59829871,8.118e-05,2]
[356180030,1742028646927,-222000.0,8.119e-05,2]
[356180031,1742028646937,-163.51693755,8.193e-05,2]
[356180032,1742028646947,-500.0,8.193e-05,2]
[356180033,1742028646956,-268.0,8.193e-05,2]
[356180034,1742028646966,-340.01546423,8.193e-05,2]
[356180035,1742028646976,-267.0127536,8.193e-05,2]
[356180036,1742028646986,-170.01463608,8.193e-05,2]
[356180037,1742028646996,-268.0,8.193e-05,2]
[356180038,1742028647006,-152.0,8.193e-05,2]
[356180039,1742028647015,-269.51577302,8.193e-05,2]
[356180040,1742028647025,-260.78,8.193e-05,2]
[356180041,1742028647035,-160.0,8.193e-05,2]
[356180042,1742028647045,-474.95519472,8.193e-05,2]
[356180043,1742028647054,-260.5,8.193e-05,2]
[356180044,1742028647063,-500.0,8.193e-05,2]
[356180045,1742028647072,-263.51402053,8.193e-05,2]
[356180046,1742028647081,-501.17650135,8.193e-05,2]
[356180047,1742028647090,-500.0,8.193e-05,2]
[356180048,1742028647100,-196.26051346,8.193e-05,2]
[356180049,1742028647109,-500.0,8.193e-05,2]
[356180050,1742028647118,-500.0,8.193e-05,2]
[356180051,1742028647128,-500.0,8.193e-05,2]
[356180052,1742028647138,-405.07508102,8.193e-05,2]
[356180053,1742028647148,-500.0,8.193e-05,2]
[356180054,1742028647157,-500.0,8.193e-05,2]
[356180055,1742028647166,-160.01583013,8.193e-05,2]
[356180056,1742028647176,-164.46809855,8.193e-05,2]
[356180057,1742028647185,-200.0,8.193e-05,2]
[356180058,1742028647194,-266.5,8.193e-05,2]
[356180059,1742028647204,-169.0,8.193e-05,2]
[356180060,1742028647213,-273.0,8.193e-05,2]
[356180061,1742028647222,-267.01126547,8.193e-05,2]
[356180062,1742028647231,-422.7742562,8.193e-05,2]
[356180063,1742028647241,-422.77425617,8.2e-05,2]
[356180064,1742028647250,-36131.97854012,8.2e-05,2]
[356180065,1742029049317,24900.0,7.397e-05,2]
[356180066,1742029474923,601.7292505,7.254e-05,2]
[356180067,1742029518782,-300.0,8.017e-05,2]
[356180068,1742029612218,500.0,7.171e-05,2]
[356180274,1742029842836,-300.0,8.017e-05,2]
[356180276,1742029842845,-160.39392326,8.018e-05,2]
[356180278,1742029842855,-500.0,8.018e-05,2]
[356180280,1742029842864,-558.8188091,8.018e-05,2]
[356180282,1742029842874,-500.0,8.018e-05,2]
[356180284,1742029842883,-500.0,8.018e-05,2]
[356180286,1742029842892,-422.41296686,8.018e-05,2]
[356180288,1742029842902,-36835.86743349,8.019e-05,2]
[356180293,1742029842941,-8739.84679556,8.019e-05,2]
[356180302,1742029845812,-3239.8,8.019e-05,2]
[356180303,1742030028017,24900.0,7.397e-05,2]
[356180304,1742030043994,150608.05510485,7.919e-05,2]
[356180309,1742030710515,-151.42472349,7.9e-05,2]
[356180315,1742030799105,-242.18547723,7.918e-05,2]
[356180316,1742030815549,-257.81452277,7.918e-05,2]
[356180317,1742030815573,-294.2922865,7.918e-05,2]
[356180318,1742030815597,-158.04588521,7.918e-05,2]
[356180319,1742030815621,-300.0,7.918e-05,2]
[356180320,1742030815645,-71391.94489515,7.919e-05,2]
[356180321,1742030815669,-259.284,8.019e-05,2]
[356180322,1742030815691,-9241.55689849,8.193e-05,2]
[356180323,1742030815713,-508.33294633,8.193e-05,2]
[356180324,1742030815734,-500.0,8.193e-05,2]
[356180325,1742030816022,-260.01586543,8.193e-05,2]
[356180326,1742030816045,-500.0,8.193e-05,2]
[356180327,1742030816066,-399.14037525,8.193e-05,2]
[356180328,1742030816087,-500.0,8.193e-05,2]
[356180329,1742030816108,-160.0,8.193e-05,2]
[356180330,1742030816129,-468.7142443,8.193e-05,2]
[356180331,1742030816150,-500.24236722,8.193e-05,2]
[356180332,1742030816171,-500.0,8.193e-05,2]
[356180333,1742030816193,-500.0,8.193e-05,2]
[356180334,1742030816215,-500.0,8.193e-05,2]
[356180335,1742030816236,-500.0,8.193e-05,2]
[356180336,1742030816256,-500.0,8.193e-05,2]
[356180337,1742030816278,-500.0,8.193e-05,2]
[356180338,1742030816299,-501.71725763,8.193e-05,2]
[356180339,1742030816320,-500.0,8.193e-05,2]
[356180340,1742030816340,-420.67002841,8.193e-05,2]
[356180341,1742030816362,-500.0,8.193e-05,2]
[356180342,1742030816383,-578.43575748,8.193e-05,2]
[356180343,1742030816403,-500.0,8.193e-05,2]
[356180344,1742030816427,-500.0,8.193e-05,2]
[356180345,1742030816449,-503.9014203,8.193e-05,2]
[356180346,1742030816471,-500.0,8.193e-05,2]
[356180347,1742030816493,-526.15063419,8.193e-05,2]
[356180348,1742030816515,-500.0,8.193e-05,2]
[356180349,1742030816536,-500.0,8.193e-05,2]
[356180350,1742030816557,-500.0,8.193e-05,2]
[356180351,1742030816577,-500.0,8.193e-05,2]
[356180352,1742030816598,-500.0,8.193e-05,2]
[356180353,1742030816619,-401.06968128,8.193e-05,2]
[356180354,1742030816640,-500.0,8.193e-05,2]
[356180355,1742030816661,-500.0,8.193e-05,2]
[356180356,1742030816682,-160.0,8.193e-05,2]
[356180357,1742030816703,-514.48802788,8.193e-05,2]
[356180358,1742030816725,-253.66455371,8.193e-05,2]
[356180359,1742030816745,-208.2651348,8.198e-05,2]
[356180360,1742030816766,-151.0,8.199e-05,2]
[356180361,1742030816787,-253.6645537,8.2e-05,2]
[356180362,1742030816809,-7741.55384381,8.2e-05,2]
[356180363,1742030816830,-16832.260001,8.2e-05,2]
[356180364,1742030816851,-500.0,8.2e-05,2]
[356180365,1742030816872,-500.0,8.203e-05,2]
[356180366,1742030816893,-150.0,8.203e-05,2]
[356180367,1742030816913,-500.0,8.206e-05,2]
[356180368,1742030816935,-253.6645537,8.206e-05,2]
[356180369,1742030816955,-500.0,8.21e-05,2]
[356180370,1742030816975,-150.0,8.212e-05,2]
[356180371,1742030816995,-540.0,8.212e-05,2]
[356180372,1742030817016,-2269.0,8.212e-05,2]
[356180373,1742030817037,-1914.0,8.212e-05,2]
[356180374,1742030817058,-399.0,8.212e-05,2]
[356180375,1742030817079,-253.6645537,8.213e-05,2]
[356180376,1742030817101,-235.64030103,8.219e-05,2]
[356180377,1742030817121,-576.5458906,8.219e-05,2]
[356180378,1742030817143,-501.35344598,8.219e-05,2]
[356180379,1742030817163,-500.60436986,8.219e-05,2]
[356180380,1742030817184,-500.0,8.219e-05,2]
[356180381,1742030817205,-505.78267206,8.219e-05,2]
[356180382,1742030817226,-500.0,8.219e-05,2]
[356180383,1742030817248,-512.09985993,8.219e-05,2]
[356180384,1742030817268,-500.0,8.219e-05,2]
[356180385,1742030817289,-500.0,8.219e-05,2]
[356180386,1742030817310,-500.0,8.219e-05,2]
[356180387,1742030817331,-503.64438027,8.219e-05,2]
[356180388,1742030817352,-589.33565572,8.219e-05,2]
[356180389,1742030817375,-500.0,8.219e-05,2]
[356180390,1742030817395,-500.89800163,8.219e-05,2]
[356180391,1742030817417,-500.6956974,8.219e-05,2]
[356180392,1742030817438,-500.0,8.219e-05,2]
[356180393,1742030817461,-501.28780785,8.219e-05,2]
[356180394,1742030817481,-500.0,8.219e-05,2]
[356180395,1742030817503,-500.0,8.219e-05,2]
[356180396,1742030817524,-500.0,8.219e-05,2]
[356180397,1742030817545,-504.18995002,8.219e-05,2]
[356180398,1742030817566,-500.0,8.219e-05,2]
[356180399,1742030817590,-385.0972421,8.219e-05,2]
[356180400,1742030817611,-502.8641707,8.219e-05,2]
[356180401,1742030817632,-159.29558943,8.219e-05,2]
[356180402,1742030817653,-201.38881834,8.219e-05,2]
[356180403,1742030817675,-509.89062095,8.219e-05,2]
[356180404,1742030817696,-500.0,8.219e-05,2]
[356180405,1742030817718,-500.0,8.219e-05,2]
[356180406,1742030817739,-502.45479096,8.219e-05,2]
[356180407,1742030817761,-500.0,8.219e-05,2]
[356180408,1742030817782,-500.0,8.219e-05,2]
[356180409,1742030817804,-500.0,8.219e-05,2]
[356180410,1742030817825,-501.48378724,8.219e-05,2]
[356180411,1742030817846,-500.0,8.219e-05,2]
[356180412,1742030817867,-502.75973958,8.219e-05,2]
[356180413,1742030817888,-500.0,8.219e-05,2]
[356180414,1742030817908,-500.0,8.219e-05,2]
[356180415,1742030817929,-505.00311798,8.219e-05,2]
[356180416,1742030817952,-500.0,8.219e-05,2]
[356180417,1742030817974,-378.14308861,8.219e-05,2]
[356180418,1742030817994,-514.6414615,8.219e-05,2]
[356180419,1742030818017,-515.31690858,8.219e-05,2]
[356180420,1742030818037,-514.65570624,8.219e-05,2]
[356180421,1742030818060,-500.0,8.219e-05,2]
[356180422,1742030818082,-500.0,8.219e-05,2]
[356180423,1742030818104,-500.0,8.219e-05,2]
[356180424,1742030818125,-514.58700007,8.219e-05,2]
[356180425,1742030818145,-514.56083212,8.219e-05,2]
[356180426,1742030818166,-507.78723942,8.219e-05,2]
[356180427,1742030818188,-500.0,8.219e-05,2]
[356180428,1742030818208,-500.0,8.219e-05,2]
[356180429,1742030818229,-459.25362908,8.219e-05,2]
[356180430,1742030818250,-500.0,8.219e-05,2]
[356180431,1742030818271,-500.0,8.219e-05,2]
[356180432,1742030818292,-583.6,8.219e-05,2]
[356180433,1742030818314,-500.0,8.219e-05,2]
[356180434,1742030818335,-512.95,8.219e-05,2]
[356180435,1742030818356,-524.20886762,8.219e-05,2]
[356180436,1742030818377,-513.17430706,8.219e-05,2]
[356180437,1742030818399,-532.55977307,8.219e-05,2]
[356180438,1742030818424,-500.0,8.219e-05,2]
[356180439,1742030818446,-507.11935493,8.219e-05,2]
[356180440,1742030818470,-500.0,8.219e-05,2]
[356180441,1742030818492,-502.19430844,8.219e-05,2]
[356180442,1742030818514,-500.0,8.219e-05,2]
[356180443,1742030818535,-500.0,8.219e-05,2]
[356180444,1742030818557,-501.72628447,8.219e-05,2]
[356180445,1742030818584,-500.0,8.219e-05,2]
[356180446,1742030818607,-500.0,8.219e-05,2]
[356180447,1742030818628,-500.0,8.219e-05,2]
[356180448,1742030818650,-502.73462613,8.219e-05,2]
[356180449,1742030818672,-500.0,8.219e-05,2]
[356180450,1742030818694,-500.0,8.219e-05,2]
[356180451,1742030818717,-501.98338329,8.219e-05,2]
[356180452,1742030818740,-500.0,8.219e-05,2]
[356180453,1742030818761,-502.61551594,8.219e-05,2]
[356180454,1742030818784,-579.40343344,8.219e-05,2]
[356180455,1742030818806,-504.77084663,8.219e-05,2]
[356180456,1742030818829,-500.0,8.219e-05,2]
[356180457,1742030818851,-502.88900295,8.219e-05,2]
[356180458,1742030818873,-500.0,8.219e-05,2]
[356180459,1742030818895,-500.0,8.219e-05,2]
[356180460,1742030818917,-461.8982895,8.219e-05,2]
[356180461,1742030818940,-307.60389464,8.219e-05,2]
[356180462,1742030818963,-501.98807863,8.219e-05,2]
[356180463,1742030818987,-500.0,8.219e-05,2]
[356180464,1742030819010,-500.0,8.219e-05,2]
[356180465,1742030819032,-512.94412046,8.219e-05,2]
[356180466,1742030819053,-513.14625044,8.219e-05,2]
[356180467,1742030819075,-510.73074638,8.219e-05,2]
[356180468,1742030819097,-500.0,8.219e-05,2]
[356180469,1742030819118,-500.0,8.219e-05,2]
[356180470,1742030819140,-500.0,8.219e-05,2]
[356180471,1742030819160,-500.0,8.219e-05,2]
[356180472,1742030819186,-500.0,8.219e-05,2]
[356180473,1742030819209,-500.0,8.219e-05,2]
[356180474,1742030819231,-500.0,8.219e-05,2]
[356180475,1742030819253,-555.1,8.219e-05,2]
[356180476,1742030819276,-500.0,8.219e-05,2]
[356180477,1742030819298,-500.0,8.219e-05,2]
[356180478,1742030819321,-500.0,8.219e-05,2]
[356180479,1742030819343,-500.0,8.219e-05,2]
[356180480,1742030819365,-500.0,8.219e-05,2]
[356180481,1742030819387,-509.55,8.219e-05,2]
[356180482,1742030819409,-500.0,8.219e-05,2]
[356180483,1742030819435,-500.0,8.219e-05,2]
[356180484,1742030819457,-593.45734067,8.219e-05,2]
[356180485,1742030819480,-500.0,8.219e-05,2]
[356180486,1742030819503,-500.95493375,8.219e-05,2]
[356180487,1742030819524,-500.0,8.219e-05,2]
[356180488,1742030819546,-511.58043631,8.219e-05,2]
[356180489,1742030819568,-500.0,8.219e-05,2]
[356180490,1742030819589,-500.0,8.219e-05,2]
[356180491,1742030819611,-500.0,8.219e-05,2]
[356180492,1742030819632,-500.0,8.219e-05,2]
[356180493,1742030819654,-500.0,8.219e-05,2]
[356180494,1742030819675,-500.0,8.219e-05,2]
[356180495,1742030819696,-500.0,8.219e-05,2]
[356180496,1742030819722,-500.0,8.219e-05,2]
[356180497,1742030819744,-500.0,8.219e-05,2]
[356180498,1742030819766,-500.0,8.219e-05,2]
[356180499,1742030819788,-500.0,8.219e-05,2]
[356180500,1742030819809,-500.0,8.219e-05,2]
[356180501,1742030819830,-500.0,8.219e-05,2]
[356180502,1742030819851,-500.0,8.219e-05,2]
[356180503,1742030819873,-500.0,8.219e-05,2]
[356180504,1742030819894,-500.0,8.219e-05,2]
[356180505,1742030820105,-500.0,8.219e-05,2]
[356180506,1742030820138,-500.0,8.219e-05,2]
[356180507,1742030820160,-500.0,8.219e-05,2]
[356180508,1742030820183,-500.0,8.219e-05,2]
[356180509,1742030820206,-500.0,8.219e-05,2]
[356180510,1742030820229,-500.0,8.219e-05,2]
[356180511,1742030820253,-500.0,8.219e-05,2]
[356180512,1742030820277,-500.0,8.219e-05,2]
[356180513,1742030820301,-500.0,8.219e-05,2]
[356180514,1742030820324,-500.0,8.219e-05,2]
[356180515,1742030820347,-500.0,8.219e-05,2]
[356180516,1742030820368,-500.0,8.219e-05,2]
[356180517,1742030820390,-500.0,8.219e-05,2]
[356180518,1742030820411,-500.0,8.219e-05,2]
[356180519,1742030820435,-500.0,8.219e-05,2]
[356180520,1742030820459,-500.0,8.219e-05,2]
[356180521,1742030820481,-507.02459435,8.219e-05,2]
[356180522,1742030820508,-500.0,8.219e-05,2]
[356180523,1742030820530,-500.0,8.219e-05,2]
[356180524,1742030820552,-500.0,8.219e-05,2]
[356180525,1742030820574,-500.0,8.219e-05,2]
[356180526,1742030820597,-512.49068824,8.219e-05,2]
[356180527,1742030820619,-501.67660358,8.219e-05,2]
[356180528,1742030820640,-500.0,8.219e-05,2]
[356180529,1742030820664,-500.0,8.219e-05,2]
[356180530,1742030820686,-500.0,8.219e-05,2]
[356180531,1742030820708,-500.0,8.219e-05,2]
[356180532,1742030820730,-500.0,8.219e-05,2]
[356180533,1742030820752,-500.0,8.219e-05,2]
[356180534,1742030820774,-505.71432072,8.219e-05,2]
[356180535,1742030820796,-500.0,8.219e-05,2]
[356180536,1742030820818,-500.0,8.219e-05,2]
[356180537,1742030820839,-500.0,8.219e-05,2]
[356180538,1742030820861,-500.0,8.219e-05,2]
[356180539,1742030820883,-500.0,8.219e-05,2]
[356180540,1742030820905,-500.0,8.219e-05,2]
[356180541,1742030820927,-500.0,8.219e-05,2]
[356180542,1742030820949,-500.0,8.219e-05,2]
[356180543,1742030820971,-515.99693852,8.219e-05,2]
[356180544,1742030820994,-500.0,8.219e-05,2]
[356180545,1742030821016,-500.0,8.219e-05,2]
[356180546,1742030821038,-500.0,8.219e-05,2]
[356180547,1742030821060,-534.66596766,8.219e-05,2]
[356180548,1742030821084,-1109.55,8.219e-05,2]
[356180549,1742030821106,-500.0,8.219e-05,2]
[356180550,1742030821129,-500.0,8.219e-05,2]
[356180551,1742030821151,-500.0,8.219e-05,2]
[356180552,1742030821173,-500.0,8.219e-05,2]
[356180553,1742030821198,-500.0,8.219e-05,2]
[356180554,1742030821221,-675.54,8.219e-05,2]
[356180555,1742030821243,-607.48082325,8.219e-05,2]
[356180556,1742030821265,-500.0,8.219e-05,2]
[356180557,1742030821287,-500.0,8.219e-05,2]
[356180558,1742030821310,-500.0,8.219e-05,2]
[356180559,1742030821332,-500.0,8.219e-05,2]
[356180560,1742030821353,-500.0,8.219e-05,2]
[356180561,1742030821376,-589.07045565,8.219e-05,2]
[356180562,1742030821398,-500.0,8.219e-05,2]
[356180563,1742030821423,-500.0,8.219e-05,2]
[356180564,1742030821446,-500.0,8.219e-05,2]
[356180565,1742030821468,-507.0255921,8.219e-05,2]
[356180566,1742030821490,-500.0,8.219e-05,2]
[356180567,1742030821516,-500.0,8.219e-05,2]
[356180568,1742030821539,-500.0,8.219e-05,2]
[356180569,1742030821562,-500.0,8.219e-05,2]
[356180570,1742030821587,-500.0,8.219e-05,2]
[356180571,1742030821611,-500.0,8.219e-05,2]
[356180572,1742030821635,-500.60958321,8.219e-05,2]
[356180573,1742030821660,-514.02718863,8.219e-05,2]
[356180574,1742030821683,-500.0,8.219e-05,2]
[356180575,1742030821706,-500.0,8.219e-05,2]
[356180576,1742030821730,-500.0,8.219e-05,2]
[356180577,1742030821753,-530.6,8.219e-05,2]
[356180578,1742030821777,-500.0,8.219e-05,2]
[356180579,1742030821800,-500.0,8.219e-05,2]
[356180580,1742030821823,-500.0,8.219e-05,2]
[356180581,1742030821847,-500.0,8.219e-05,2]
[356180582,1742030821870,-500.0,8.219e-05,2]
[356180583,1742030821894,-500.0,8.219e-05,2]
[356180584,1742030821917,-500.0,8.219e-05,2]
[356180585,1742030821942,-500.0,8.219e-05,2]
[356180586,1742030821966,-500.0,8.219e-05,2]
[356180587,1742030821989,-265.66990129,8.219e-05,2]
[356180588,1742030822012,-606.75,8.219e-05,2]
[356180589,1742030822035,-500.0,8.219e-05,2]
[356180590,1742030822058,-500.0,8.219e-05,2]
[356180591,1742030822081,-500.0,8.219e-05,2]
[356180592,1742030822103,-500.0,8.219e-05,2]
[356180593,1742030822126,-500.0,8.219e-05,2]
[356180594,1742030822148,-500.0,8.219e-05,2]
[356180595,1742030822170,-500.0,8.219e-05,2]
[356180596,1742030822193,-521.51,8.219e-05,2]
[356180597,1742030822216,-500.0,8.219e-05,2]
[356180598,1742030822238,-500.0,8.219e-05,2]
[356180599,1742030822260,-520.96570608,8.219e-05,2]
[356180600,1742030822281,-500.0,8.219e-05,2]
[356180601,1742030822304,-500.0,8.219e-05,2]
[356180602,1742030822325,-500.0,8.219e-05,2]
[356180603,1742030822346,-500.0,8.219e-05,2]
[356180604,1742030822367,-500.0,8.219e-05,2]
[356180605,1742030822389,-795.69,8.219e-05,2]
[356180606,1742030822412,-500.0,8.219e-05,2]
[356180607,1742030822439,-500.0,8.219e-05,2]
[356180608,1742030822463,-500.0,8.219e-05,2]
[356180609,1742030822485,-500.0,8.219e-05,2]
[356180610,1742030822510,-500.0,8.219e-05,2]
[356180611,1742030822533,-584.43964914,8.219e-05,2]
[356180612,1742030822556,-500.0,8.219e-05,2]
[356180613,1742030822579,-500.0,8.219e-05,2]
[356180614,1742030822603,-500.0,8.219e-05,2]
[356180615,1742030822627,-500.0,8.219e-05,2]
[356180616,1742030822652,-500.0,8.219e-05,2]
[356180617,1742030822675,-500.0,8.219e-05,2]
[356180618,1742030822699,-320.10222438,8.219e-05,2]
[356180619,1742030822721,-500.0,8.219e-05,2]
[356180620,1742030822742,-500.0,8.219e-05,2]
[356180621,1742030822764,-500.0,8.219e-05,2]
[356180622,1742030822786,-500.0,8.219e-05,2]
[356180623,1742030822808,-344.01281358,8.219e-05,2]
[356180624,1742030822829,-507.37644692,8.219e-05,2]
[356180625,1742030822850,-500.0,8.219e-05,2]
[356180626,1742030822871,-500.0,8.219e-05,2]
[356180627,1742030822892,-500.0,8.219e-05,2]
[356180628,1742030822913,-500.0,8.219e-05,2]
[356180629,1742030822934,-500.0,8.219e-05,2]
[356180630,1742030822956,-500.0,8.219e-05,2]
[356180631,1742030822978,-500.0,8.219e-05,2]
[356180632,1742030823000,-500.0,8.219e-05,2]
[356180633,1742030823023,-500.0,8.219e-05,2]
[356180634,1742030823046,-692.72,8.219e-05,2]
[356180635,1742030823069,-500.0,8.219e-05,2]
[356180636,1742030823092,-500.0,8.219e-05,2]
[356180637,1742030823115,-500.0,8.219e-05,2]
[356180638,1742030823137,-500.0,8.219e-05,2]
[356180639,1742030823160,-1346.74,8.219e-05,2]
[356180640,1742030823185,-500.0,8.219e-05,2]
[356180641,1742030823210,-500.0,8.219e-05,2]
[356180642,1742030823233,-500.0,8.219e-05,2]
[356180643,1742030823254,-500.0,8.219e-05,2]
[356180644,1742030823276,-706.6,8.219e-05,2]
[356180645,1742030823298,-500.0,8.219e-05,2]
[356180646,1742030823321,-1310.2,8.219e-05,2]
[356180647,1742030823343,-1372.04,8.219e-05,2]
[356180648,1742030823366,-500.0,8.219e-05,2]
[356180649,1742030823389,-500.0,8.219e-05,2]
[356180650,1742030823413,-500.0,8.219e-05,2]
[356180651,1742030823440,-500.0,8.219e-05,2]
[356180652,1742030823465,-834.41,8.219e-05,2]
[356180653,1742030823489,-500.0,8.219e-05,2]
[356180654,1742030823514,-1754.23,8.219e-05,2]
[356180655,1742030823536,-668.59,8.219e-05,2]